fUSD/lending_fUSD_20250504
["ID","MTS","AMOUNT","RATE_DAILY","PERIOD"]
[359810420,1746357053029,-606.32,0.00019863,2]
[359810421,1746357053038,-450.0,0.00019863,2]
[359810422,1746357053047,-1241.63,0.00019863,2]
[359810423,1746357053057,-450.0,0.00019863,2]
[359810424,1746357053066,-305.38671307,0.00019863,2]
[359810425,1746357053076,-450.0,0.00019863,2]
[359810426,1746357053085,-450.0,0.00019863,2]
[359810427,1746357053095,-450.0,0.00019863,2]
[359810428,1746357053104,-450.0,0.00019863,2]
[359810429,1746357053113,-450.0,0.00019863,2]
[359810430,1746357053123,-2285.06,0.00019863,2]
[359810431,1746357053132,-378.85,0.00019863,2]
[359810432,1746357053141,-803.25,0.00019863,2]
[359810433,1746357053150,-820.06,0.00019863,2]
[359810434,1746357053159,-450.0,0.00019863,2]
[359810435,1746357053169,-450.0,0.00019863,2]
[359810436,1746357053178,-450.0,0.00019863,2]
[359810437,1746357053187,-450.0,0.00019863,2]
[359810438,1746357053197,-450.0,0.00019863,2]
[359810439,1746357053206,-502.01,0.00019863,2]
[359810440,1746357053216,-506.73,0.00019863,2]
[359810441,1746357053225,-450.0,0.00019863,2]
[359810442,1746357053235,-635.52,0.00019863,2]
[359810443,1746357053244,-2416.14,0.00019863,2]
[359810444,1746357053253,-450.0,0.00019863,2]
[359810445,1746357053262,-450.0,0.00019863,2]
[359810446,1746357053271,-2517.04,0.00019863,2]
[359810447,1746357053280,-450.0,0.00019863,2]
[359810448,1746357053291,-1876.35,0.00019863,2]
[359810449,1746357053304,-450.0,0.00019863,2]
[359810450,1746357053314,-286.72580984,0.00019863,2]
[359810451,1746357053323,-658.76,0.00019863,2]
[359810452,1746357053332,-982.96,0.00019863,2]
[359810453,1746357053343,-450.0,0.00019863,2]
[359810454,1746357053352,-2060.85,0.00019863,2]
[359810455,1746357053362,-450.0,0.00019863,2]
[359810456,1746357053371,-450.0,0.00019863,2]
[359810457,1746357053383,-736.73,0.00019863,2]
[359810458,1746357053393,-450.0,0.00019863,2]
[359810459,1746357053403,-450.0,0.00019863,2]
[359810460,1746357053413,-450.0,0.00019863,2]
[359810461,1746357053423,-734.93,0.00019863,2]
[359810462,1746357053432,-44838.52,0.00019863,2]
[359810463,1746357053441,-549.64,0.00019863,2]
[359810464,1746357053450,-545.43,0.00019863,2]
[359810465,1746357053459,-450.0,0.00019863,2]
[359810466,1746357053469,-1019.57,0.00019863,2]
[359810467,1746357053478,-2353.14,0.00019863,2]
[359810468,1746357053488,-450.0,0.00019863,2]
[359810469,1746357053497,-450.0,0.00019863,2]
[359810470,1746357053506,-867.94,0.00019863,2]
[359810471,1746357053515,-10350.47,0.00019863,2]
[359810472,1746357053524,-450.0,0.00019863,2]
[359810473,1746357053534,-806.32,0.00019863,2]
[359810474,1746357053543,-693.62,0.00019863,2]
[359810475,1746357053553,-450.0,0.00019863,2]
[359810476,1746357053562,-589.81,0.00019863,2]
[359810477,1746357053572,-5999.6,0.00019863,2]
[359810478,1746357053581,-450.0,0.00019863,2]
[359810479,1746357053590,-165.91945768,0.00019863,2]
[359810480,1746357053600,-3228.24,0.00019863,2]
[359810481,1746357053610,-499.22,0.00019863,2]
[359810482,1746357053619,-450.0,0.00019863,2]
[359810483,1746357053629,-450.0,0.00019863,2]
[359810484,1746357053638,-450.0,0.00019863,2]
[359810485,1746357053648,-450.0,0.00019863,2]
[359810486,1746357053657,-628.17,0.00019863,2]
[359810487,1746357053666,-725.65,0.00019863,2]
[359810488,1746357053675,-450.0,0.00019863,2]
[359810489,1746357053685,-450.0,0.00019863,2]
[359810490,1746357053694,-450.0,0.00019863,2]
[359810491,1746357053704,-2711.27,0.00019863,2]
[359810492,1746357053713,-450.0,0.00019863,2]
[359810493,1746357053722,-450.0,0.00019863,2]
[359810494,1746357053731,-450.0,0.00019863,2]
[359810495,1746357053740,-450.0,0.00019863,2]
[359810496,1746357053749,-1079.22,0.00019863,2]
[359810497,1746357053759,-450.0,0.00019863,2]
[359810498,1746357053768,-450.0,0.00019863,2]
[359810499,1746357053777,-450.0,0.00019863,2]
[359810500,1746357053786,-450.0,0.00019863,2]
[359810501,1746357053796,-55070.31,0.00019863,2]
[359810502,1746357053805,-450.0,0.00019863,2]
[359810503,1746357053814,-450.0,0.00019863,2]
[359810504,1746357053823,-450.0,0.00019863,2]
[359810505,1746357053832,-450.0,0.00019863,2]
[359810506,1746357053842,-1088.38,0.00019863,2]
[359810507,1746357053851,-450.0,0.00019863,2]
[359810508,1746357053861,-450.0,0.00019863,2]
[359810509,1746357053870,-466.11,0.00019863,2]
[359810510,1746357053880,-450.0,0.00019863,2]
[359810511,1746357053889,-2416.24,0.00019863,2]
[359810512,1746357053898,-12500.0,0.00019865,2]
[359810513,1746357053908,-457.08517061,0.0001987,2]
[359810514,1746357053917,-501.93748199,0.00019873,2]
[359810515,1746357053926,-500.0,0.00019873,2]
[359810516,1746357053935,-509.37765771,0.00019873,2]
[359810517,1746357053945,-500.0,0.00019873,2]
[359810518,1746357053955,-500.0,0.00019873,2]
[359810519,1746357053964,-500.0,0.00019873,2]
[359810520,1746357053973,-218.48434508,0.00019873,2]
[359810521,1746357053982,-500.0,0.00019873,2]
[359810522,1746357053992,-500.89911374,0.00019873,2]
[359810523,1746357054001,-271.02809258,0.00019873,2]
[359810524,1746357054009,-500.41356724,0.00019873,2]
[359810525,1746357054019,-211.34446769,0.00019873,2]
[359810526,1746357054030,-500.0,0.00019873,2]
[359810527,1746357054038,-500.0,0.00019873,2]
[359810528,1746357054047,-500.0,0.00019873,2]
[359810529,1746357054056,-500.0,0.00019873,2]
[359810530,1746357054066,-500.0,0.00019873,2]
[359810531,1746357054075,-160.43340472,0.00019873,2]
[359810532,1746357054085,-500.0,0.00019873,2]
[359810533,1746357054094,-503.88474273,0.00019873,2]
[359810534,1746357054104,-315.71092533,0.00019873,2]
[359810535,1746357054114,-160.5244568,0.00019873,2]
[359810536,1746357054123,-500.0,0.00019873,2]
[359810537,1746357054133,-500.0,0.00019873,2]
[359810538,1746357054142,-508.32666158,0.00019873,2]
[359810539,1746357054151,-500.0,0.00019873,2]
[359810540,1746357054160,-501.6743923,0.00019873,2]
[359810541,1746357054170,-502.07702519,0.00019873,2]
[359810542,1746357054179,-500.67768756,0.00019873,2]
[359810543,1746357054188,-331.03061073,0.00019873,2]
[359810544,1746357054198,-501.17443641,0.00019873,2]
[359810545,1746357054208,-500.72242443,0.00019873,2]
[359810546,1746357054217,-12500.0,0.00019874,2]
[359810547,1746357054226,-12500.0,0.00019882,2]
[359810548,1746357054236,-797.0,0.00019885,2]
[359810549,1746357054245,-550.0,0.00019885,2]
[359810550,1746357054255,-1451.0,0.00019885,2]
[359810551,1746357054264,-915.0,0.00019885,2]
[359810552,1746357054274,-581.0,0.00019885,2]
[359810553,1746357054283,-1657.0,0.00019885,2]
[359810554,1746357054293,-203.21344204,0.00019886,3]
[359810555,1746357054307,-181.58723497,0.00019886,2]
[359810556,1746357054317,-500.0,0.00019889,2]
[359810557,1746357054326,-500.0,0.00019889,2]
[359810558,1746357054335,-440.64,0.00019889,2]
[359810559,1746357054346,-474.37460147,0.0001989,2]
[359810560,1746357054357,-450.0,0.0001989,2]
[359810561,1746357054366,-450.0,0.0001989,2]
[359810562,1746357054377,-450.0,0.0001989,2]
[359810563,1746357054388,-450.0,0.0001989,2]
[359810564,1746357054398,-971.51,0.0001989,2]
[359810565,1746357054408,-509.92,0.0001989,2]
[359810566,1746357054418,-450.0,0.0001989,2]
[359810567,1746357054427,-450.0,0.0001989,2]
[359810568,1746357054436,-450.0,0.0001989,2]
[359810569,1746357054446,-450.0,0.0001989,2]
[359810570,1746357054457,-450.0,0.0001989,2]
[359810571,1746357054466,-521.64,0.0001989,2]
[359810572,1746357054476,-450.0,0.0001989,2]
[359810573,1746357054485,-450.0,0.0001989,2]
[359810574,1746357054495,-693.3,0.0001989,2]
[359810575,1746357054504,-450.0,0.0001989,2]
[359810576,1746357054513,-450.0,0.0001989,2]
[359810577,1746357054522,-450.0,0.0001989,2]
[359810578,1746357054532,-562.42,0.0001989,2]
[359810579,1746357054541,-1281.13,0.0001989,2]
[359810580,1746357054550,-606.32,0.0001989,2]
[359810581,1746357054559,-450.0,0.0001989,2]
[359810582,1746357054568,-1241.63,0.0001989,2]
[359810583,1746357054578,-450.0,0.0001989,2]
[359810584,1746357054587,-450.0,0.0001989,2]
[359810585,1746357054596,-450.0,0.0001989,2]
[359810586,1746357054607,-450.0,0.0001989,2]
[359810587,1746357054617,-450.0,0.0001989,2]
[359810588,1746357054626,-450.0,0.0001989,2]
[359810589,1746357054635,-2285.06,0.0001989,2]
[359810590,1746357054644,-803.25,0.0001989,2]
[359810591,1746357054654,-820.06,0.0001989,2]
[359810592,1746357054663,-450.0,0.0001989,2]
[359810593,1746357054673,-450.0,0.0001989,2]
[359810594,1746357054682,-450.0,0.0001989,2]
[359810595,1746357054691,-204.99015149,0.0001989,2]
[359810596,1746357054701,-450.0,0.0001989,2]
[359810597,1746357054710,-502.01,0.0001989,2]
[359810598,1746357054720,-506.73,0.0001989,2]
[359810599,1746357054729,-411.56,0.0001989,2]
[359810600,1746357054739,-635.52,0.0001989,2]
[359810601,1746357054748,-2416.14,0.0001989,2]
[359810602,1746357054758,-450.0,0.0001989,2]
[359810603,1746357054767,-521.45870172,0.0001989,2]
[359810604,1746357054777,-2517.04,0.0001989,2]
[359810605,1746357054786,-450.0,0.0001989,2]
[359810606,1746357054796,-1876.35,0.0001989,2]
[359810607,1746357054805,-517.74262057,0.0001989,2]
[359810608,1746357054814,-658.76,0.0001989,2]
[359810609,1746357054824,-982.96,0.0001989,2]
[359810610,1746357054833,-442.08872177,0.0001989,2]
[359810611,1746357054843,-2060.85,0.0001989,2]
[359810612,1746357054852,-450.0,0.0001989,2]
[359810613,1746357054862,-450.0,0.0001989,2]
[359810614,1746357054872,-736.73,0.0001989,2]
[359810615,1746357054881,-458.30794088,0.0001989,2]
[359810616,1746357054892,-450.0,0.0001989,2]
[359810617,1746357054902,-450.0,0.0001989,2]
[359810618,1746357054913,-734.93,0.0001989,2]
[359810619,1746357054923,-4902.77067123,0.0001989,2]
[359810620,1746357054938,-278.45791132,0.0001989,2]
[359810621,1746357054950,-39657.29141745,0.0001989,2]
[359810622,1746357054960,-549.64,0.0001989,2]
[359810623,1746357054971,-545.43,0.0001989,2]
[359810624,1746357054980,-450.0,0.0001989,2]
[359810625,1746357054990,-1019.57,0.0001989,2]
[359810626,1746357055000,-2353.14,0.0001989,2]
[359810627,1746357055010,-450.0,0.0001989,2]
[359810628,1746357055020,-867.94,0.0001989,2]
[359810629,1746357055029,-151.0,0.0001989,2]
[359810630,1746357055039,-10350.47,0.0001989,2]
[359810631,1746357055049,-190.148114,0.0001989,2]
[359810632,1746357055058,-450.0,0.0001989,2]
[359810633,1746357055068,-806.32,0.0001989,2]
[359810634,1746357055077,-693.62,0.0001989,2]
[359810635,1746357055087,-450.0,0.0001989,2]
[359810636,1746357055096,-589.81,0.0001989,2]
[359810637,1746357055106,-5999.6,0.0001989,2]
[359810638,1746357055116,-450.0,0.0001989,2]
[359810639,1746357055126,-151.0,0.0001989,2]
[359810640,1746357055136,-3228.24,0.0001989,2]
[359810641,1746357055145,-151.0,0.0001989,2]
[359810642,1746357055155,-151.0,0.0001989,2]
[359810643,1746357055167,-499.22,0.0001989,2]
[359810644,1746357055177,-450.0,0.0001989,2]
[359810645,1746357055187,-151.0,0.0001989,2]
[359810646,1746357055197,-450.0,0.0001989,2]
[359810647,1746357055207,-450.0,0.0001989,2]
[359810648,1746357055217,-450.0,0.0001989,2]
[359810649,1746357055229,-151.0,0.0001989,2]
[359810650,1746357055239,-151.0,0.0001989,2]
[359810651,1746357055248,-628.17,0.0001989,2]
[359810652,1746357055258,-725.65,0.0001989,2]
[359810653,1746357055267,-151.0,0.0001989,2]
[359810654,1746357055277,-450.0,0.0001989,2]
[359810655,1746357055287,-450.0,0.0001989,2]
[359810656,1746357055297,-151.0,0.0001989,2]
[359810657,1746357055309,-450.0,0.0001989,2]
[359810658,1746357055319,-151.0,0.0001989,2]
[359810659,1746357055329,-2711.27,0.0001989,2]
[359810660,1746357055339,-450.0,0.0001989,2]
[359810661,1746357055348,-153.217094,0.0001989,2]
[359810662,1746357055357,-450.0,0.0001989,2]
[359810663,1746357055367,-450.0,0.0001989,2]
[359810664,1746357055378,-450.0,0.0001989,2]
[359810665,1746357055388,-1079.22,0.0001989,2]
[359810666,1746357055397,-450.0,0.0001989,2]
[359810667,1746357055407,-450.0,0.0001989,2]
[359810668,1746357055417,-450.0,0.0001989,2]
[359810669,1746357055427,-166.23913,0.0001989,2]
[359810670,1746357055436,-450.0,0.0001989,2]
[359810671,1746357055446,-283.594832,0.0001989,2]
[359810672,1746357055455,-16166.58298052,0.0001989,2]
[359810673,1746357055530,5018.42,0.00018856,2]
[359810674,1746357055635,-450.0,0.00019726,2]
[359810675,1746357055645,-450.0,0.00019726,2]
[359810676,1746357055654,-450.0,0.00019753,2]
[359810677,1746357055664,-450.0,0.0001978,2]
[359810678,1746357055674,-161.1644564,0.0001978,2]
[359810679,1746357055691,-288.8355436,0.0001978,2]
[359810680,1746357055701,-450.0,0.00019808,2]
[359810681,1746357055710,-450.0,0.00019835,2]
[359810682,1746357055720,-179.8,0.00019863,2]
[359810683,1746357055730,-6070.1803564,0.0001989,2]
[359810684,1746357055741,-12621.59801222,0.0001989,2]
[359810685,1746357055758,-10802.15659927,0.0001989,2]
[359810686,1746357055770,-4797.6261,0.0001989,2]
[359810687,1746357055782,-500.0,0.0001989,2]
[359810688,1746357091747,450.0,0.00029863,30]
[359810689,1746357227182,482.92,0.000298,30]
[359810690,1746357258279,196.16,0.0001885,2]
[359810691,1746357263383,500.0,0.000196,3]
[359810692,1746357298610,503.84,0.0001885,2]
[359810693,1746357298636,496.16,0.0001885,2]
[359810694,1746357303157,3157.41834931,0.00019313,2]
[359810695,1746357309740,172.057148,0.0003,31]
[359810696,1746357366632,256.0,0.0003,30]
[359810697,1746357410709,255.51399698,0.0003,30]
[359810698,1746357424942,-403.3554435,0.00019525,2]
[359810699,1746357432116,-163.16300651,0.00019525,2]
[359810700,1746357434821,-174.99633699,0.00019525,2]
[359810701,1746357480950,157.23,0.00018756,2]
[359810702,1746357481349,157.23,0.00028133,120]
[359810703,1746357485975,23900.0,0.00018765,2]
[359810704,1746357499695,152.8,0.0001876,2]
[359810705,1746357595547,250.0,0.0001876,2]
[359810706,1746357748340,500.0,0.00018783,2]
[359810707,1746357767393,500.0,0.00018783,2]
[359810708,1746357910622,1000.0,0.000154,2]
[359810710,1746357936027,168.776635,0.000294,30]
[359810714,1746358006847,450.0,0.00029863,30]
[359810718,1746358029760,-248.29830939,0.00019526,2]
[359810719,1746358033084,-340.39232967,0.00019526,2]
[359810720,1746358033107,-26.54315874,0.00019526,2]
[359810739,1746358039242,-300.0,0.00019526,2]
[359810740,1746358041894,-150.0,0.00019526,2]
[359810741,1746358045252,-112.14748032,0.00019526,2]
[359810742,1746358047851,-300.0,0.00019624,2]
[359810743,1746358047882,-200.0,0.00019625,2]
[359810744,1746358047908,-206.98484765,0.00019625,2]
[359810745,1746358047937,-73000.65702807,0.00019625,2]
[359810746,1746358047969,-1200.0,0.00019625,2]
[359810747,1746358047996,-300.0,0.00019625,2]
[359810748,1746358048022,-850.0,0.00019625,2]
[359810749,1746358048050,-200.0,0.00019625,2]
[359810750,1746358048076,-181.62865943,0.00019626,2]
[359810751,1746358048106,-1743.37536786,0.00019626,2]
[359810752,1746358048134,-2836.83700469,0.00019626,2]
[359810753,1746358048161,-181.62865943,0.00019626,2]
[359810754,1746358048188,-157.17887803,0.00019626,2]
[359810755,1746358048215,-28042.9095,0.00019626,2]
[359810756,1746358048246,-1995.419,0.00019626,2]
[359810757,1746358048275,-1743.37536783,0.00019656,2]
[359810758,1746358048302,-2836.83700462,0.00019656,2]
[359810759,1746358048331,-157.17887803,0.0001966,2]
[359810760,1746358048368,-207.4,0.00019676,2]
[359810761,1746358048401,-1743.37536783,0.00019687,2]
[359810762,1746358048428,-2836.83700462,0.00019687,2]
[359810763,1746358048454,-150.99,0.00019688,2]
[359810764,1746358048480,-9999.99,0.00019688,2]
[359810765,1746358048505,-9999.99,0.00019688,2]
[359810766,1746358048531,-999.99,0.00019688,2]
[359810767,1746358048558,-6450.01,0.00019688,2]
[359810768,1746358048584,-1148.02,0.00019688,2]
[359810769,1746358048610,-2643.21486382,0.00019688,2]
[359810770,1746358048623,-300.0,0.00019688,2]
[359810771,1746358048639,-200.0,0.00019688,2]
[359810772,1746358048651,-206.98484765,0.00019688,2]
[359810773,1746358048666,-6641.43028853,0.00019688,2]
[359810774,1746358048676,-9353.24,0.00019688,2]
[359810775,1746358048685,-157.17887803,0.00019695,2]
[359810776,1746358048694,-403.3554435,0.000197,2]
[359810777,1746358048704,-1000.0,0.000197,2]
[359810778,1746358048713,-199.33604032,0.00019708,2]
[359810779,1746358048722,-151.0,0.00019714,2]
[359810780,1746358048731,-338.83,0.00019716,2]
[359810781,1746358048740,-1743.37536783,0.00019717,2]
[359810782,1746358048749,-2836.83700462,0.00019717,2]
[359810783,1746358048759,-450.0,0.00019726,2]
[359810784,1746358048948,-450.0,0.00019726,2]
[359810785,1746358048958,-450.0,0.00019726,2]
[359810786,1746358048968,-450.0,0.00019726,2]
[359810787,1746358048977,-450.0,0.00019726,2]
[359810788,1746358048987,-450.0,0.00019726,2]
[359810789,1746358048995,-450.0,0.00019726,2]
[359810790,1746358049004,-450.0,0.00019726,2]
[359810791,1746358049013,-450.0,0.00019726,2]
[359810792,1746358049022,-315.93214303,0.00019726,2]
[359810793,1746358049031,-450.0,0.00019726,2]
[359810794,1746358049040,-450.0,0.00019726,2]
[359810795,1746358049049,-450.0,0.00019726,2]
[359810796,1746358049058,-450.0,0.00019726,2]
[359810797,1746358049067,-450.0,0.00019726,2]
[359810798,1746358049076,-450.0,0.00019726,2]
[359810799,1746358049085,-450.0,0.00019726,2]
[359810800,1746358049094,-859.36,0.00019726,2]
[359810801,1746358049105,-450.0,0.00019726,2]
[359810802,1746358049114,-331.39461255,0.00019726,2]
[359810803,1746358049123,-450.0,0.00019726,2]
[359810804,1746358049132,-450.0,0.00019726,2]
[359810805,1746358049141,-450.0,0.00019726,2]
[359810806,1746358049150,-450.0,0.00019726,2]
[359810807,1746358049159,-450.0,0.00019726,2]
[359810808,1746358049168,-450.0,0.00019726,2]
[359810809,1746358049177,-450.0,0.00019726,2]
[359810810,1746358049186,-450.0,0.00019726,2]
[359810811,1746358049195,-450.0,0.00019726,2]
[359810812,1746358049204,-450.0,0.00019726,2]
[359810813,1746358049213,-574.50106076,0.00019726,2]
[359810814,1746358049223,-450.0,0.00019726,2]
[359810815,1746358049232,-450.0,0.00019726,2]
[359810816,1746358049242,-459.56,0.00019726,2]
[359810817,1746358049251,-450.0,0.00019726,2]
[359810818,1746358049261,-450.0,0.00019726,2]
[359810819,1746358049270,-450.0,0.00019726,2]
[359810820,1746358049279,-450.0,0.00019726,2]
[359810821,1746358049288,-450.0,0.00019726,2]
[359810822,1746358049297,-450.0,0.00019726,2]
[359810823,1746358049307,-450.0,0.00019726,2]
[359810824,1746358049316,-450.0,0.00019726,2]
[359810825,1746358049325,-450.0,0.00019726,2]
[359810826,1746358049334,-450.0,0.00019726,2]
[359810827,1746358049343,-450.0,0.00019726,2]
[359810828,1746358049353,-450.0,0.00019726,2]
[359810829,1746358049362,-450.0,0.00019726,2]
[359810830,1746358049372,-450.0,0.00019726,2]
[359810831,1746358049381,-450.0,0.00019726,2]
[359810832,1746358049390,-245.94232101,0.00019726,2]
[359810833,1746358049400,-455.91641373,0.00019726,2]
[359810834,1746358049409,-450.0,0.00019726,2]
[359810835,1746358049418,-450.0,0.00019726,2]
[359810836,1746358049427,-450.0,0.00019726,2]
[359810837,1746358049437,-450.0,0.00019726,2]
[359810838,1746358049446,-478.72,0.00019726,2]
[359810839,1746358049455,-450.0,0.00019726,2]
[359810840,1746358049465,-450.0,0.00019726,2]
[359810841,1746358049474,-450.0,0.00019726,2]
[359810842,1746358049483,-450.0,0.00019726,2]
[359810843,1746358049493,-450.0,0.00019726,2]
[359810844,1746358049502,-450.0,0.00019726,2]
[359810845,1746358049511,-450.0,0.00019726,2]
[359810846,1746358049521,-450.0,0.00019726,2]
[359810847,1746358049530,-420.30361472,0.00019726,2]
[359810848,1746358049539,-450.0,0.00019726,2]
[359810849,1746358049548,-450.0,0.00019726,2]
[359810850,1746358049557,-450.0,0.00019726,2]
[359810851,1746358049566,-450.0,0.00019726,2]
[359810852,1746358049576,-450.0,0.00019726,2]
[359810853,1746358049585,-450.0,0.00019726,2]
[359810854,1746358049594,-450.0,0.00019726,2]
[359810855,1746358049604,-250.0,0.00019726,2]
[359810856,1746358049614,-450.0,0.00019726,2]
[359810857,1746358049623,-555.49,0.00019726,2]
[359810858,1746358049633,-450.0,0.00019726,2]
[359810859,1746358049642,-450.0,0.00019726,2]
[359810860,1746358049651,-450.0,0.00019726,2]
[359810861,1746358049661,-450.0,0.00019726,2]
[359810862,1746358049670,-450.0,0.00019726,2]
[359810863,1746358049679,-450.0,0.00019726,2]
[359810864,1746358049688,-450.0,0.00019726,2]
[359810865,1746358049697,-450.0,0.00019726,2]
[359810866,1746358049706,-483.03789791,0.00019726,2]
[359810867,1746358049716,-450.0,0.00019726,2]
[359810868,1746358049725,-450.0,0.00019726,2]
[359810869,1746358049735,-450.0,0.00019726,2]
[359810870,1746358049744,-492.74654308,0.00019726,2]
[359810871,1746358049754,-450.0,0.00019726,2]
[359810872,1746358049763,-525.4401336,0.00019726,2]
[359810873,1746358049772,-450.0,0.00019726,2]
[359810874,1746358049782,-450.0,0.00019726,2]
[359810875,1746358049791,-450.0,0.00019726,2]
[359810876,1746358049799,-450.0,0.00019726,2]
[359810877,1746358049809,-450.0,0.00019726,2]
[359810878,1746358049817,-450.0,0.00019726,2]
[359810879,1746358049827,-450.0,0.00019726,2]
[359810880,1746358049836,-450.0,0.00019726,2]
[359810881,1746358049845,-450.0,0.00019726,2]
[359810882,1746358049854,-313.55075466,0.00019726,2]
[359810883,1746358049863,-450.0,0.00019726,2]
[359810884,1746358049874,-429.17822093,0.00019726,2]
[359810885,1746358049885,-450.0,0.00019726,2]
[359810886,1746358049894,-450.0,0.00019726,2]
[359810887,1746358049903,-450.0,0.00019726,2]
[359810888,1746358049913,-450.0,0.00019726,2]
[359810889,1746358049923,-450.0,0.00019726,2]
[359810890,1746358049931,-450.0,0.00019726,2]
[359810891,1746358049940,-245.99279119,0.00019726,2]
[359810892,1746358049949,-450.0,0.00019726,2]
[359810893,1746358049959,-450.0,0.00019726,2]
[359810894,1746358049968,-439.00749807,0.00019726,2]
[359810895,1746358049989,-10.99250193,0.00019726,2]
[359810896,1746358049998,-572.53,0.00019726,2]
[359810897,1746358050007,-450.0,0.00019726,2]
[359810898,1746358050018,-166.47749807,0.00019726,2]
[359810899,1746358050029,-283.52250193,0.00019726,2]
[359810900,1746358050038,-16.47749807,0.00019726,2]
[359810901,1746358050049,-433.52250193,0.00019726,2]
[359810902,1746358050058,-416.47749807,0.00019726,2]
[359810903,1746358050069,-96.08250193,0.00019726,2]
[359810904,1746358050078,-103.91749807,0.00019726,2]
[359810905,1746358050089,-181.62865943,0.00019726,2]
[359810906,1746358050108,-164.4538425,0.00019726,2]
[359810907,1746358050117,-450.0,0.00019726,2]
[359810908,1746358050126,-508.09,0.00019726,2]
[359810909,1746358050135,-450.0,0.00019726,2]
[359810910,1746358050145,-170.83152536,0.00019726,2]
[359810911,1746358050156,-279.16847464,0.00019726,2]
[359810912,1746358050165,-450.0,0.00019726,2]
[359810913,1746358050174,-450.0,0.00019726,2]
[359810914,1746358050183,-450.0,0.00019726,2]
[359810915,1746358050192,-450.0,0.00019726,2]
[359810916,1746358050201,-472.93,0.00019726,2]
[359810917,1746358050210,-284.73853005,0.00019726,2]
[359810918,1746358050221,-165.26146995,0.00019726,2]
[359810919,1746358050230,-16.36718948,0.00019726,2]
[359810920,1746358050241,-157.17887803,0.00019726,2]
[359810921,1746358050257,-276.45393249,0.00019726,2]
[359810922,1746358050266,-450.0,0.00019726,2]
[359810923,1746358050275,-450.0,0.00019726,2]
[359810924,1746358050286,-450.0,0.00019726,2]
[359810925,1746358050295,-450.0,0.00019726,2]
[359810926,1746358050304,-450.0,0.00019726,2]
[359810927,1746358050313,-584.66,0.00019726,2]
[359810928,1746358050322,-450.0,0.00019726,2]
[359810929,1746358050331,-450.0,0.00019726,2]
[359810930,1746358050341,-450.0,0.00019726,2]
[359810931,1746358050350,-450.0,0.00019726,2]
[359810932,1746358050359,-450.0,0.00019726,2]
[359810933,1746358050368,-450.0,0.00019726,2]
[359810934,1746358050377,-450.0,0.00019726,2]
[359810935,1746358050386,-450.0,0.00019726,2]
[359810936,1746358050395,-450.0,0.00019726,2]
[359810937,1746358050408,-450.0,0.00019726,2]
[359810938,1746358050417,-530.34,0.00019726,2]
[359810939,1746358050427,-450.0,0.00019726,2]
[359810940,1746358050436,-450.0,0.00019726,2]
[359810941,1746358050446,-450.0,0.00019726,2]
[359810942,1746358050455,-450.0,0.00019726,2]
[359810943,1746358050465,-450.0,0.00019726,2]
[359810944,1746358050475,-450.0,0.00019726,2]